bitfinex/quotes_SOLUSD_20240626
["timestamp","ask_amount","ask_price","bid_price","bid_amount"]
[1719362951629,7.3063,136.87,136.83,7.3081]
[1719362952933,20.0,136.9,136.82,0.17]
[1719362953131,27.3047,136.9,136.86,18.2663]
[1719362953330,20.0,136.9,136.83,18.2697]
[1719362953549,20.0,136.9,136.84,7.3073]
[1719362953866,7.3058,136.88,136.84,7.3073]
[1719362956048,7.3053,136.89,136.85,7.307]
[1719362956261,7.3057,136.88,136.84,7.3077]
[1719362956475,7.3057,136.88,136.83,25.5778]
[1719362957859,7.3057,136.88,136.84,7.3077]
[1719362959845,20.0,136.9,136.83,18.4397]
[1719362960045,20.0,136.9,136.83,18.2697]
[1719362960472,7.3056,136.88,136.84,7.3074]
[1719362960678,26.95,136.87,136.84,7.3074]
[1719362962970,31.95,136.87,136.84,7.3074]
[1719362964050,5.0,136.87,136.84,7.3074]
[1719362968470,5.0,136.87,136.85,7.3072]
[1719362968883,5.0,136.87,136.85,7.3071]
[1719362969173,5.0,136.87,136.84,7.3075]
[1719362969352,5.0,136.87,136.83,45.2197]
[1719362969353,5.0,136.87,136.85,7.3072]
[1719362971982,5.0,136.87,136.84,7.3075]
[1719362973077,12.3062,136.87,136.83,25.7478]
[1719362973283,12.3062,136.87,136.84,0.17]
[1719362974484,5.0,136.87,136.84,7.4777]
[1719362980586,5.0,136.87,136.85,26.95]
[1719362980756,5.0,136.87,136.86,34.4267]
[1719362981086,5.0,136.87,136.86,34.5967]
[1719362981681,5.0,136.87,136.86,0.34]
[1719362981865,7.3067,136.86,136.82,25.5797]
[1719362982068,12.3063,136.87,136.83,7.3083]
[1719362982270,31.95,136.87,136.84,7.3077]
[1719362982885,5.0,136.87,136.84,25.5771]
[1719362983270,7.3067,136.86,136.82,34.2585]
[1719362983466,7.3067,136.86,136.82,7.3085]
[1719362984691,7.3067,136.86,136.82,34.2585]
[1719362985671,7.3067,136.86,136.82,7.3085]
[1719362986795,7.3073,136.85,136.81,25.5816]
[1719362986979,7.308,136.84,136.79,22.5553]
[1719362987168,7.308,136.84,136.79,26.95]
[1719362987370,7.308,136.84,136.8,7.3096]
[1719362987571,7.3074,136.85,136.81,7.3093]
[1719362988464,15.0582,136.86,136.77,54.8347]
[1719362988667,15.0582,136.86,136.78,7.3105]
[1719362988668,7.3089,136.82,136.78,7.3105]
[1719362989096,15.0582,136.86,136.77,25.5893]
[1719362989097,18.2685,136.85,136.77,25.5893]
[1719362989412,34.2597,136.81,136.77,25.5893]
[1719362989567,16.1214,136.8,136.74,18.2821]
[1719362989768,23.4315,136.8,136.75,7.3121]
[1719362990078,26.95,136.79,136.76,25.5914]
[1719362990277,26.95,136.79,136.76,25.5917]
[1719362990672,23.4313,136.8,136.76,18.2799]
[1719362990915,7.3105,136.79,136.74,7.3127]
[1719362991965,7.3105,136.79,136.75,7.3125]
[1719362992169,26.95,136.77,136.75,7.3125]
[1719362995306,26.95,136.77,136.76,7.312]
[1719362997606,26.95,136.77,136.75,25.5938]
[1719362997807,7.3105,136.79,136.75,25.5938]
[1719362999382,6.0223,136.79,136.72,18.2844]
[1719362999602,6.0223,136.79,136.71,7.3143]
[1719362999904,20.0,136.78,136.71,7.3143]
[1719363000103,20.0,136.78,136.73,7.3136]
[1719363000423,27.3113,136.78,136.73,7.3136]
[1719363000917,7.3116,136.77,136.73,7.3136]
[1719363001094,7.3122,136.76,136.72,7.314]
[1719363001915,7.3117,136.77,136.72,7.314]
[1719363002303,7.3121,136.76,136.72,7.314]
[1719363002508,26.95,136.77,136.73,18.284]
[1719363002813,26.95,136.77,136.74,7.3131]
[1719363003008,27.3115,136.78,136.74,7.3131]
[1719363003517,27.3115,136.78,136.73,18.284]
[1719363003888,27.3115,136.78,136.74,7.313]
[1719363004088,26.95,136.77,136.75,7.3126]
[1719363004315,26.95,136.77,136.74,7.313]
[1719363005089,26.95,136.77,136.73,25.5974]
[1719363006625,34.2616,136.77,136.73,25.5974]
[1719363007523,7.3116,136.77,136.73,25.5974]
[1719363007814,7.3122,136.76,136.73,18.284]
[1719363008016,20.0,136.78,136.71,0.34]
[1719363008214,20.0,136.78,136.7,25.6025]
[1719363008395,7.3127,136.75,136.71,7.3146]
[1719363008919,7.3137,136.73,136.69,0.34]
[1719363009097,7.3133,136.74,136.7,0.17]
[1719363009299,7.3139,136.73,136.7,0.34]
[1719363009509,7.3133,136.74,136.7,0.34]
[1719363009816,7.3133,136.74,136.7,7.6551]
[1719363010324,7.3136,136.73,136.69,18.2893]
[1719363010497,18.2817,136.75,136.66,25.6102]
[1719363010696,16.3207,136.76,136.63,23.068]
[1719363010697,26.95,136.69,136.63,23.068]
[1719363011015,18.2849,136.73,136.65,18.2945]
[1719363011313,26.95,136.69,136.66,7.3172]
[1719363012021,26.95,136.69,136.67,7.3168]
[1719363012393,26.95,136.69,136.66,7.3172]
[1719363012715,7.3151,136.71,136.66,7.3172]
[1719363012920,7.3151,136.71,136.67,7.3168]
[1719363013419,7.3143,136.72,136.68,7.3162]
[1719363013616,7.3141,136.73,136.68,7.3162]
[1719363013919,7.3141,136.73,136.67,18.2919]
[1719363013920,7.3151,136.71,136.67,18.2919]
[1719363014509,7.3151,136.71,136.67,25.6086]
[1719363015897,7.3151,136.71,136.67,18.2919]
[1719363016299,7.3152,136.7,136.67,18.2919]
[1719363016813,7.3159,136.69,136.64,18.2955]
[1719363017019,7.3167,136.68,136.64,25.6136]
[1719363018007,26.95,136.66,136.64,25.6136]
[1719363018213,7.3167,136.68,136.64,18.2955]
[1719363019912,7.3167,136.68,136.64,25.6139]
[1719363020105,34.8814,136.7,136.62,7.3195]
[1719363020302,27.01366978,136.69,136.62,7.3195]
[1719363020634,7.3177,136.66,136.61,25.6191]
[1719363021412,27.01366978,136.69,136.6,0.17]
[1719363021618,27.01366978,136.69,136.63,18.2973]
[1719363021814,7.3169,136.67,136.63,25.6161]
[1719363024837,7.3174,136.66,136.63,18.2973]
[1719363026409,27.01366978,136.69,136.6,18.4704]
[1719363026821,26.95,136.62,136.6,18.4704]
[1719363027134,26.95,136.62,136.6,18.3004]
[1719363027327,7.3192,136.63,136.6,18.3004]
[1719363028421,7.3186,136.64,136.6,25.621]
[1719363030636,7.3181,136.65,136.61,7.32]
[1719363031615,18.293,136.67,136.6,18.3004]
[1719363031830,7.3185,136.64,136.6,25.6208]
[1719363032637,7.3181,136.65,136.61,7.32]
[1719363034236,18.293,136.67,136.63,7.3186]
[1719363034237,7.3169,136.67,136.63,7.3186]
[1719363034425,27.01366978,136.69,136.62,18.2988]
[1719363034624,7.3168,136.68,136.64,7.3184]
[1719363034826,27.3168,136.67,136.63,7.3188]
[1719363035848,7.01366978,136.69,136.62,18.2988]
[1719363036026,7.3172,136.67,136.63,7.3188]
[1719363036440,7.3174,136.66,136.62,25.6182]
[1719363036633,7.318,136.65,136.62,18.2988]
[1719363038446,7.3176,136.66,136.62,25.6183]
[1719363040838,7.01366978,136.69,136.62,18.2988]
[1719363041145,7.3171,136.67,136.63,7.319]
[1719363042250,7.3174,136.66,136.62,25.6181]
[1719363042553,18.2912,136.68,136.59,18.3018]
[1719363042857,7.3188,136.64,136.6,7.3202]
[1719363043230,7.3181,136.65,136.61,7.32]
[1719363044038,18.2952,136.65,136.56,41.2334]
[1719363044241,7.3206,136.6,136.56,48.556]
[1719363044431,34.2706,136.6,136.56,48.556]
[1719363044855,26.95,136.6,136.56,48.556]
[1719363045051,18.2982,136.63,136.56,41.2334]
[1719363045851,18.2982,136.63,136.56,48.5558]
[1719363046222,7.3202,136.61,136.56,48.5558]
[1719363047254,7.3202,136.61,136.57,7.3221]
[1719363047432,7.3197,136.62,136.57,7.3221]
[1719363047628,7.3201,136.61,136.57,7.3221]
[1719363048738,26.95,136.64,136.57,7.3221]
[1719363048932,20.0,136.63,136.58,18.3037]
[1719363049132,54.2693,136.63,136.59,7.3208]
[1719363049346,54.2693,136.63,136.58,52.5752]
[1719363049754,54.2693,136.63,136.58,25.6252]
[1719363049755,27.3193,136.63,136.58,25.6252]
[1719363050934,7.3196,136.62,136.58,25.6252]
[1719363052864,34.2696,136.62,136.58,25.6252]
[1719363054164,7.3204,136.61,136.56,22.927]
[1719363054361,34.2704,136.61,136.56,57.1994]
[1719363054865,7.3204,136.61,136.56,57.1994]
[1719363055469,7.3208,136.6,136.56,30.2496]
[1719363056040,7.3213,136.59,136.56,22.927]
[1719363056247,7.3218,136.58,136.55,18.3074]
[1719363056548,7.3218,136.58,136.54,7.3236]
[1719363056549,34.2718,136.58,136.54,7.3236]
[1719363057131,18.2994,136.62,136.53,29.755]
[1719363057132,34.2726,136.57,136.53,29.755]
[1719363057337,26.95,136.55,136.52,18.3113]
[1719363057558,34.2733,136.55,136.52,18.3113]
[1719363058050,7.3233,136.55,136.5,29.7567]
[1719363058440,7.3233,136.55,136.51,7.3253]
[1719363059156,7.3229,136.56,136.51,7.3253]
[1719363060659,7.3224,136.57,136.52,7.3249]
[1719363061144,7.322,136.58,136.53,25.6345]
[1719363061335,26.95,136.55,136.53,18.3103]
[1719363061537,15.9662,136.6,136.51,7.3254]
[1719363061839,26.95,136.52,136.5,18.3142]
[1719363063371,26.95,136.52,136.5,25.6401]
[1719363063660,7.3244,136.53,136.49,0.8599649]
[1719363064070,7.325,136.52,136.49,0.8599649]
[1719363064582,7.3245,136.53,136.49,0.8599649]
[1719363064872,7.324,136.54,136.49,8.1863649]
[1719363065053,20.0,136.53,136.49,8.1863649]
[1719363065451,27.3244,136.53,136.49,8.1863649]
[1719363065652,27.3244,136.53,136.49,0.8599649]
[1719363066247,20.0,136.53,136.49,8.1862649]
[1719363067058,27.3245,136.53,136.49,8.1862649]
[1719363067875,7.3252,136.52,136.49,0.8599649]
[1719363068056,7.3255,136.51,136.49,0.8599649]
[1719363068367,7.326,136.5,136.49,0.8599649]
[1719363070466,8.05865441,136.5,136.49,0.8599649]
[1719363072144,0.73265441,136.5,136.49,0.8599649]
[1719363075063,0.73265441,136.5,136.46,11.0849649]
[1719363075064,8.05865441,136.5,136.46,11.0849649]
[1719363075277,35.00865441,136.5,136.46,11.0849649]
[1719363075959,35.00865441,136.5,136.46,18.4130649]
[1719363077644,8.05865441,136.5,136.46,18.4130649]
[1719363080254,8.05865441,136.5,136.46,7.3281]
[1719363082068,8.05865441,136.5,136.45,25.649]
[1719363082386,7.3267,136.49,136.45,25.649]
[1719363082952,8.05875441,136.5,136.46,7.3279]
[1719363083152,0.73265441,136.5,136.46,7.3279]
[1719363083955,0.73265441,136.5,136.45,18.3206]
[1719363084156,0.73265441,136.5,136.47,18.3183]
[1719363084470,0.73265441,136.5,136.48,7.3267]
[1719363084663,0.73265441,136.5,136.49,7.3265]
[1719363085577,0.73265441,136.5,136.48,7.3269]
[1719363086152,0.73265441,136.5,136.47,25.6457]
[1719363089873,35.00875441,136.5,136.45,6.4766]
[1719363090384,8.05875441,136.5,136.45,7.3281]
[1719363090599,0.73265441,136.46,136.45,7.3281]
[1719363093261,0.73265441,136.46,136.45,34.6181]
[1719363093676,0.73265441,136.46,136.45,36.07552402]
[1719363094284,0.73265441,136.46,136.45,34.6181]
[1719363096056,0.70508955,136.46,136.45,34.6181]
[1719363097894,0.70508955,136.46,136.45,54.6181]
[1719363099373,0.70508955,136.46,136.45,27.6681]
[1719363099588,0.70508955,136.46,136.45,54.6181]
[1719363100768,34.2723,136.57,136.52,7.3245]
[1719363101014,34.2723,136.57,136.53,7.3242]
[1719363101163,7.3229,136.56,136.52,18.3118]
[1719363101788,7.3244,136.53,136.49,18.3154]
[1719363102082,7.3244,136.53,136.5,26.95]
[1719363102476,7.324,136.54,136.5,26.95]
[1719363103067,7.324,136.54,136.5,7.326]
[1719363103395,7.3235,136.55,136.51,7.3254]
[1719363103574,7.3229,136.56,136.51,7.3254]
[1719363104173,15.5544,136.58,136.51,18.313]
[1719363104369,7.3231,136.56,136.51,25.6381]
[1719363104580,7.3231,136.56,136.51,18.313]
[1719363104786,15.5544,136.58,136.51,45.263]
[1719363105174,7.323,136.56,136.51,25.638]
[1719363105981,7.323,136.56,136.52,7.3248]
[1719363108999,7.323,136.56,136.51,52.5883]
[1719363109174,7.3238,136.54,136.5,27.12]
[1719363109377,7.3238,136.54,136.5,26.95]
[1719363109694,7.3244,136.53,136.49,26.95]
[1719363109907,33.8589,136.58,136.49,34.2765]
[1719363110200,7.3243,136.54,136.49,34.2765]
[1719363110494,0.73265441,136.5,136.49,34.2765]
[1719363112298,0.73265441,136.5,136.48,18.3164]
[1719363112476,0.73265441,136.5,136.48,52.5934]
[1719363113769,0.73265441,136.5,136.49,7.3265]
[1719363114594,0.73265441,136.5,136.49,34.2765]
[1719363114804,0.73265441,136.5,136.49,34.6165]
[1719363117700,0.73265441,136.5,136.49,7.6665]
[1719363118009,0.73265441,136.5,136.49,34.6165]
[1719363119076,0.73265441,136.5,136.49,7.6665]
[1719363119276,0.73265441,136.5,136.48,52.5933]
[1719363119489,0.73265441,136.5,136.49,7.3265]
[1719363120086,0.73265441,136.5,136.49,34.2765]
[1719363120297,0.73265441,136.5,136.49,7.3265]
[1719363120604,0.73265441,136.5,136.49,34.6165]
[1719363122191,0.73265441,136.5,136.49,67.6781]
[1719363122579,0.73265441,136.5,136.49,40.7281]
[1719363124091,7.3224,136.57,136.53,7.3243]
[1719363124698,22.8761,136.58,136.54,7.4938]
[1719363125194,22.8761,136.58,136.54,0.17]
[1719363127081,22.8761,136.58,136.54,45.4285]
[1719363127082,15.5544,136.58,136.54,45.4285]
[1719363127305,6.66944262,136.61,136.55,26.95]
[1719363127498,16.6033,136.62,136.57,34.2722]
[1719363127698,7.3201,136.61,136.57,26.95]
[1719363127923,7.3208,136.6,136.55,34.2731]
[1719363128604,7.3208,136.6,136.56,26.95]
[1719363128802,7.3208,136.6,136.55,34.2731]
[1719363129114,7.3208,136.6,136.56,26.95]
[1719363130392,7.3208,136.6,136.56,34.2727]
[1719363130608,0.73227886,136.57,136.56,34.2727]
[1719363130783,0.73227886,136.57,136.56,34.6127]
[1719363132287,0.73227886,136.57,136.56,0.34]
[1719363132484,8.05457886,136.57,136.52,62.2216]
[1719363132689,7.3228,136.56,136.53,0.34]
[1719363132923,7.3228,136.56,136.53,27.29]
[1719363133212,8.05467886,136.57,136.53,0.34]
[1719363133592,0.73227886,136.57,136.53,27.29]
[1719363133922,16.17007886,136.57,136.51,26.95]
[1719363134119,26.95,136.56,136.51,34.2754]
[1719363134331,34.2731,136.56,136.51,34.2754]
[1719363135100,16.17007886,136.57,136.53,26.95]
[1719363135300,0.73227886,136.57,136.53,26.95]
[1719363135696,0.73227886,136.57,136.53,18.3108]
[1719363135902,0.73227886,136.57,136.54,26.95]
[1719363136195,0.73227886,136.57,136.55,26.95]
[1719363136595,0.73227886,136.57,136.54,7.4936]
[1719363136794,0.73227886,136.57,136.55,0.17]
[1719363137092,7.3236,136.55,136.5,18.3145]
[1719363137294,7.3236,136.55,136.5,25.6401]
[1719363138017,7.3236,136.55,136.51,7.3254]
[1719363138195,7.323,136.56,136.51,7.3254]
[1719363138824,7.3233,136.55,136.51,7.3254]
[1719363139903,7.3229,136.56,136.51,7.3254]
[1719363146009,7.3229,136.56,136.52,7.3248]
[1719363148635,8.05467886,136.57,136.52,7.3248]
[1719363150330,8.05467886,136.57,136.53,7.3243]
[1719363150519,0.73227886,136.54,136.52,18.482]
[1719363150714,0.73227886,136.54,136.53,7.4943]
[1719363151032,0.73227886,136.54,136.53,7.6643]
[1719363151623,0.73227886,136.54,136.53,51.5743]
[1719363151933,0.73227886,136.54,136.53,71.5743]
[1719363154635,0.73227886,136.54,136.53,77.6625]
[1719363155244,0.73227886,136.54,136.53,131.7825]
[1719363155940,0.73227886,136.54,136.53,153.7425]
[1719363156729,23.5277,136.64,136.59,7.3211]
[1719363156923,23.5277,136.64,136.6,27.04]
[1719363157435,23.5277,136.64,136.61,0.86836261]
[1719363157948,7.319,136.63,136.61,0.86836261]
[1719363158941,7.319,136.63,136.59,34.3611]
[1719363159148,7.319,136.63,136.6,0.34]
[1719363161238,7.3197,136.62,136.57,34.362]
[1719363161427,7.3197,136.62,136.58,0.17]
[1719363161741,16.2091,136.64,136.56,34.3626]
[1719363161930,7.3207,136.6,136.56,27.04]
[1719363162244,7.3213,136.59,136.54,34.3637]
[1719363163245,7.3213,136.59,136.55,7.3232]
[1719363163817,7.3217,136.58,136.54,18.3093]
[1719363164546,7.3217,136.58,136.54,25.6331]
[1719363164746,7.3213,136.59,136.54,25.6331]
[1719363165243,7.3213,136.59,136.55,7.3232]
[1719363165447,22.4489,136.6,136.55,7.3232]
[1719363166056,22.4487,136.6,136.56,18.3064]
[1719363166346,7.3212,136.59,136.54,7.3236]
[1719363167534,22.4489,136.6,136.55,7.323]
[1719363170049,22.4489,136.6,136.55,7.323]
[1719363170343,15.1281,136.6,136.56,7.3227]
[1719363170532,0.73227886,136.57,136.56,7.3227]
[1719363172123,0.73227886,136.57,136.55,25.6311]
[1719363172524,0.73227886,136.57,136.56,0.34]
[1719363174952,0.73227886,136.57,136.56,7.6627]
[1719363175931,0.73227886,136.57,136.56,9.12501429]
[1719363176832,0.73227886,136.57,136.56,7.6627]
[1719363179652,0.73227886,136.57,136.56,9.55406232]
[1719363182146,0.73227886,136.57,136.56,7.6627]
[1719363184841,0.73227886,136.57,136.56,34.7127]
[1719363189071,0.73227886,136.57,136.56,7.6627]
[1719363189264,0.73227886,136.57,136.56,34.7127]
[1719363189773,0.73227886,136.57,136.56,7.6627]
[1719363190148,0.73227886,136.57,136.56,34.7127]
[1719363191162,0.73227886,136.57,136.52,65.941]
[1719363191163,0.73227886,136.57,136.52,18.3113]
[1719363191362,0.73227886,136.57,136.53,7.3243]
[1719363191559,27.78227886,136.57,136.53,7.3243]
[1719363192162,0.73227886,136.57,136.53,34.3743]
[1719363192363,0.73227886,136.57,136.54,7.3237]
[1719363194662,8.05477886,136.57,136.52,18.3113]
[1719363194977,8.05477886,136.57,136.52,25.6358]
[1719363195976,8.05477886,136.57,136.53,0.17]
[1719363196976,8.05477886,136.57,136.53,7.4943]
[1719363197680,0.73227886,136.57,136.53,7.4943]
[1719363198684,0.73227886,136.57,136.54,7.3237]
[1719363199276,8.05467886,136.57,136.52,25.6358]
[1719363200977,0.73227886,136.57,136.53,7.3243]
[1719363201167,27.05,136.56,136.53,7.3243]
[1719363201563,0.73227886,136.57,136.54,18.3094]
[1719363201773,0.73227886,136.57,136.54,25.633]
[1719363204572,0.73227886,136.57,136.54,18.3094]
[1719363204772,0.73227886,136.57,136.52,7.3248]
[1719363205080,7.3231,136.56,136.51,25.6381]
[1719363206133,7.3234,136.55,136.51,25.6381]
[1719363208188,7.323,136.56,136.51,25.6381]
[1719363210217,0.73227886,136.57,136.53,18.31]
[1719363210427,0.73227886,136.57,136.55,7.3231]
[1719363211922,0.73227886,136.57,136.55,25.6312]
[1719363213516,0.73227886,136.57,136.56,7.3227]
[1719363213720,0.11477436,136.57,136.56,54.7127]
[1719363214020,16.4247,136.65,136.61,7.3199]
[1719363214192,43.4747,136.65,136.61,7.3199]
[1719363214405,16.4247,136.65,136.61,7.3199]
[1719363214586,16.4247,136.65,136.62,7.3192]
[1719363215182,16.4247,136.65,136.62,34.3692]
[1719363217216,16.4247,136.65,136.61,7.4899]
[1719363217405,23.7426,136.65,136.62,0.34]
[1719363217613,7.3185,136.64,136.57,62.2149]
[1719363217919,16.4247,136.65,136.61,34.3697]
[1719363218119,16.4247,136.65,136.61,52.6699]
[1719363218824,23.7427,136.65,136.62,0.17]
[1719363220593,6.66944262,136.68,136.64,27.05]
[1719363220797,15.1226,136.69,136.67,7.3165]
[1719363221005,15.1226,136.72,136.68,7.3163]
[1719363221532,7.3148,136.71,136.67,45.3417]
[1719363222732,7.3148,136.71,136.67,18.2917]
[1719363224619,7.3152,136.7,136.66,7.4869]
[1719363224831,7.3152,136.7,136.66,0.17]
[1719363225025,15.1226,136.72,136.65,0.17]
[1719363225026,7.3163,136.68,136.65,0.17]
[1719363225229,7.3163,136.68,136.65,0.34]
[1719363226099,15.1226,136.72,136.65,0.34]
[1719363226727,7.3156,136.7,136.65,7.6578]
[1719363226924,7.3158,136.69,136.65,0.34]
[1719363228129,7.3165,136.68,136.64,18.2954]
[1719363229018,7.3158,136.69,136.64,25.6138]
[1719363229708,7.3158,136.69,136.65,7.3179]
[1719363230328,15.1226,136.72,136.65,7.3179]
[1719363230329,7.3153,136.7,136.65,7.3179]
[1719363231029,7.3148,136.71,136.67,7.3168]
[1719363231210,7.3148,136.71,136.66,25.9504]
[1719363231534,7.3154,136.7,136.66,25.9504]
[1719363232119,7.3154,136.7,136.66,18.6332]
[1719363232536,33.4084,136.72,136.64,7.3183]
[1719363232711,15.1226,136.72,136.6,21.4403]
[1719363232916,15.1226,136.72,136.61,7.3197]
[1719363232917,7.3178,136.66,136.61,7.3197]
[1719363233316,7.3178,136.66,136.62,7.3194]
[1719363233733,7.3178,136.66,136.6,39.7412]
[1719363234037,7.3178,136.66,136.61,7.3199]
[1719363234210,7.3183,136.65,136.6,47.0618]
[1719363234417,7.318,136.65,136.6,25.6214]
[1719363234926,7.3185,136.64,136.6,18.3009]
[1719363235627,7.3179,136.66,136.61,7.4897]
[1719363235822,7.3181,136.65,136.6,25.6211]
[1719363236027,7.3177,136.66,136.61,7.3199]
[1719363238040,7.3177,136.66,136.62,7.4894]
[1719363238222,7.317,136.67,136.63,7.319]
[1719363239342,7.317,136.67,136.62,25.7881]
[1719363241229,7.317,136.67,136.63,7.3188]
[1719363241427,7.3174,136.66,136.62,25.788]
[1719363241732,7.3186,136.64,136.59,25.6229]
[1719363241932,7.318,136.65,136.6,7.3204]
[1719363242131,7.318,136.65,136.59,18.3018]
[1719363242334,7.318,136.65,136.6,7.3204]
[1719363242627,18.2914,136.68,136.59,18.3018]
[1719363242834,7.3188,136.64,136.6,0.17]
[1719363243046,7.319,136.63,136.6,0.17]
[1719363244241,7.319,136.63,136.6,0.34]
[1719363244746,7.3187,136.64,136.6,0.34]
[1719363245354,18.2945,136.66,136.56,40.9928]
[1719363245527,7.3202,136.61,136.56,32.1461]
[1719363245725,7.3199,136.62,136.57,7.3217]
[1719363246031,23.16074262,136.67,136.58,18.3041]
[1719363246240,7.3184,136.65,136.61,7.32]
[1719363246560,23.16074262,136.67,136.61,7.32]
[1719363246561,7.3175,136.66,136.61,7.32]
[1719363247048,7.3175,136.66,136.6,18.4712]
[1719363247223,7.3179,136.65,136.6,18.6412]
[1719363247439,7.3175,136.66,136.61,0.17]
[1719363247760,7.3175,136.66,136.61,7.6599]
[1719363247936,23.16074262,136.67,136.6,18.3012]
[1719363248433,7.3185,136.64,136.6,18.3012]
[1719363248634,7.3181,136.65,136.6,52.6513]
[1719363249242,27.03,136.66,136.61,27.37]
[1719363249549,7.3181,136.65,136.61,34.6897]
[1719363249760,7.3181,136.65,136.61,0.34]
[1719363250339,34.3475,136.66,136.61,7.6599]
[1719363250662,7.3175,136.66,136.62,7.3195]
[1719363251461,36.1913,136.71,136.62,18.2979]
[1719363251764,34.3461,136.69,136.64,34.3485]
[1719363251941,7.3161,136.69,136.64,34.3485]
[1719363252941,7.3164,136.68,136.64,27.03]
[1719363253938,7.3158,136.69,136.66,27.03]
[1719363254738,7.3158,136.69,136.64,18.2957]
[1719363254945,7.3158,136.69,136.65,0.34]
[1719363255359,7.3158,136.69,136.65,7.6578]
[1719363256262,7.3158,136.69,136.65,0.34]
[1719363256473,16.1913,136.71,136.65,0.34]
[1719363256639,7.3153,136.7,136.66,7.317]
[1719363257365,7.3148,136.71,136.66,7.317]
[1719363257662,7.3148,136.71,136.67,0.34]
[1719363259186,7.3148,136.71,136.67,7.6567]
[1719363261547,7.3144,136.72,136.67,7.6567]
[1719363262768,7.3148,136.71,136.67,7.6567]
[1719363262958,7.3148,136.71,136.67,0.34]
[1719363264163,25.29576978,136.75,136.67,0.34]
[1719363264164,14.32666978,136.75,136.67,0.34]
[1719363264364,7.3135,136.74,136.69,7.3154]
[1719363264563,7.3135,136.74,136.7,18.2876]
[1719363265258,7.3136,136.73,136.7,18.2876]
[1719363265459,7.3136,136.73,136.69,7.3154]
[1719363266973,7.3136,136.73,136.68,7.3161]
[1719363267175,7.3136,136.73,136.69,0.34]
[1719363267674,6.66944262,136.77,136.69,0.34]
[1719363267675,7.3133,136.74,136.69,18.6291]
[1719363267858,7.3133,136.74,136.7,7.3151]
[1719363268051,7.3127,136.75,136.7,7.3151]
[1719363268245,7.3133,136.74,136.69,25.9447]
[1719363268441,7.3138,136.73,136.69,25.9447]
[1719363269668,7.3131,136.74,136.7,7.3152]
[1719363270483,13.98144262,136.77,136.72,7.3138]
[1719363270680,21.4898,136.78,136.72,7.3138]
[1719363270984,7.3121,136.76,136.71,18.2863]
[1719363271993,7.3121,136.76,136.71,25.6008]
[1719363273088,7.3116,136.77,136.72,7.3138]
[1719363273288,7.3116,136.77,136.73,0.17]
[1719363274601,34.2911,136.78,136.73,34.4636]
[1719363274780,7.3111,136.78,136.74,26.98]
[1719363275790,7.3111,136.78,136.73,34.4636]
[1719363276262,7.3111,136.78,136.74,26.98]
[1719363276462,7.3106,136.79,136.75,26.98]
[1719363277174,7.3106,136.79,136.75,34.2926]
[1719363279386,7.3106,136.79,136.75,26.98]
[1719363280188,32.49333468,136.84,136.77,26.98]
[1719363280389,32.49333468,136.84,136.76,7.6517]
[1719363280590,32.49333468,136.84,136.77,26.98]
[1719363281089,26.98,136.82,136.77,26.98]
[1719363281276,7.3099,136.8,136.77,26.98]
[1719363281876,7.3095,136.81,136.77,26.98]
[1719363283189,7.3095,136.81,136.78,0.17]
[1719363283396,7.3095,136.81,136.78,27.32]
[1719363284378,7.3104,136.79,136.75,18.2813]